bitfinex-derivatives/quotes_BTCF0:USTF0_20240820
["timestamp","ask_amount","ask_price","bid_price","bid_amount"]
[1724161734733,0.065694,60868.0,60865.0,0.3608]
[1724161735037,0.065695,60867.0,60865.0,0.3608]
[1724161735234,0.99095564,60866.0,60860.0,0.001]
[1724161735539,0.426501,60862.0,60850.0,0.00021305]
[1724161735741,3.77,60857.0,60850.0,0.00021305]
[1724161736240,0.065711,60852.0,60850.0,0.00021305]
[1724161736447,3.835707,60857.0,60850.0,0.00021305]
[1724161736746,3.77,60857.0,60856.0,0.3608]
[1724161736936,3.77,60857.0,60850.0,0.00021305]
[1724161737335,3.77,60857.0,60856.0,0.065707]
[1724161738649,3.771,60857.0,60856.0,0.065707]
[1724161739235,3.77,60857.0,60856.0,0.066707]
[1724161740037,3.835706,60857.0,60856.0,0.001]
[1724161740339,3.77,60857.0,60856.0,0.001]
[1724161740737,3.835706,60857.0,60856.0,0.001]
[1724161740932,0.065712,60851.0,60850.0,0.00021305]
[1724161741339,0.065708,60856.0,60850.0,0.00021305]
[1724161741537,3.77,60857.0,60850.0,0.00021305]
[1724161741738,0.065711,60853.0,60850.0,0.00021305]
[1724161741945,0.114912,60852.0,60850.0,0.00021305]
[1724161742139,0.065712,60851.0,60850.0,0.00021305]
[1724161742544,0.065713,60850.0,60849.0,0.00024637]
[1724161742746,0.065717,60847.0,60842.0,0.065722]
[1724161742944,0.04908281,60843.0,60842.0,0.065722]
[1724161743342,0.09768281,60846.0,60842.0,0.065722]
[1724161743539,0.04908281,60844.0,60842.0,0.065722]
[1724161744353,0.09797434,60845.0,60842.0,0.065722]
[1724161744846,0.09797434,60845.0,60842.0,0.005]
[1724161745049,0.065721,60843.0,60842.0,0.005]
[1724161745251,0.11471898,60843.0,60842.0,0.005]
[1724161745443,3.88471898,60843.0,60842.0,0.005]
[1724161745752,3.77,60843.0,60842.0,0.005]
[1724161746048,0.04989153,60845.0,60842.0,0.3658]
[1724161746247,0.00019153,60845.0,60842.0,0.3648]
[1724161746450,0.06571,60854.0,60845.0,0.065719]
[1724161746451,0.04897973,60854.0,60845.0,0.065719]
[1724161746650,0.0489,60855.0,60854.0,0.065709]
[1724161747449,3.93402421,60860.0,60856.0,0.065706]
[1724161747648,0.02662083,60859.0,60857.0,0.065705]
[1724161748047,3.83594857,60860.0,60857.0,0.065705]
[1724161748352,3.83594857,60860.0,60858.0,0.065705]
[1724161748850,0.065704,60859.0,60858.0,0.065705]
[1724161749052,0.09232491,60859.0,60858.0,0.065705]
[1724161749255,0.10632491,60859.0,60858.0,0.065705]
[1724161749750,0.09232491,60859.0,60858.0,0.065705]
[1724161750255,0.065704,60859.0,60858.0,0.065705]
[1724161750751,0.09232483,60859.0,60858.0,0.065705]
[1724161751859,0.09432483,60859.0,60858.0,0.065705]
[1724161752660,0.09432413,60859.0,60858.0,0.065705]
[1724161753356,0.02862013,60859.0,60852.0,0.00024637]
[1724161753561,0.06571,60853.0,60852.0,0.00024637]
[1724161754250,0.02662283,60853.0,60852.0,0.06595737]
[1724161754456,0.10007564,60859.0,60858.0,0.065705]
[1724161754651,0.02862166,60859.0,60858.0,0.065705]
[1724161755165,0.02662166,60859.0,60858.0,0.065705]
[1724161755752,3.77024557,60860.0,60859.0,0.131408]
[1724161755753,0.00024557,60860.0,60859.0,0.131408]
[1724161756158,0.04915331,60864.0,60863.0,0.065699]
[1724161756355,0.04915331,60867.0,60863.0,0.3608]
[1724161756752,3.77,60871.0,60869.0,0.065693]
[1724161756953,3.77,60871.0,60870.0,0.065692]
[1724161758254,3.83542627,60871.0,60870.0,0.065692]
[1724161758655,3.77,60871.0,60870.0,0.066692]
[1724161758955,3.784,60871.0,60870.0,0.066692]
[1724161760067,3.84941965,60871.0,60870.0,0.066692]
[1724161760261,0.06306092,60871.0,60870.0,0.132384]
[1724161760560,0.014,60871.0,60870.0,0.132384]
[1724161761562,0.014,60871.0,60870.0,0.066692]
[1724161762160,0.01197768,60871.0,60870.0,1.025224]
[1724161762366,0.01197768,60871.0,60870.0,1.090916]
[1724161762660,0.00398444,60871.0,60870.0,1.025224]
[1724161763457,0.00398444,60871.0,60870.0,0.7025558]
[1724161763654,0.00398444,60871.0,60870.0,1.05412934]
[1724161764462,0.00398444,60871.0,60870.0,0.98843734]
[1724161764662,0.065698,60865.0,60857.0,0.3608]
[1724161764861,0.11465496,60863.0,60852.0,0.3608]
[1724161765065,0.3608,60867.0,60852.0,0.3608]
[1724161765066,3.77,60856.0,60852.0,0.3608]
[1724161766754,3.771,60856.0,60852.0,0.3668]
[1724161767154,3.77,60856.0,60852.0,0.3608]
[1724161767360,3.771,60856.0,60852.0,0.3668]
[1724161769368,3.77,60856.0,60852.0,0.3608]
[1724161769669,3.77,60856.0,60852.0,0.3658]
[1724161770065,3.77,60856.0,60852.0,0.3608]
[1724161770259,3.77,60856.0,60852.0,0.3658]
[1724161771259,3.81895596,60856.0,60852.0,0.3658]
[1724161771465,0.42621965,60853.0,60836.0,0.426528]
[1724161771764,0.065719,60845.0,60837.0,0.065727]
[1724161771968,0.11472165,60845.0,60837.0,0.065727]
[1724161772170,0.04900265,60844.0,60837.0,0.065727]
[1724161772469,0.065721,60843.0,60836.0,0.43846409]
[1724161772664,0.065721,60843.0,60837.0,0.065727]
[1724161772862,0.11472365,60843.0,60837.0,0.065727]
[1724161773069,3.77,60842.0,60837.0,0.065727]
[1724161773269,3.77,60842.0,60838.0,0.065726]
[1724161773465,3.77,60842.0,60837.0,0.014]
[1724161773975,3.77,60842.0,60841.0,0.065723]
[1724161774674,3.77,60842.0,60837.0,0.014]
[1724161774866,3.77,60842.0,60839.0,0.065725]
[1724161775670,3.771,60842.0,60839.0,0.065725]
[1724161776671,3.77,60842.0,60841.0,0.065723]
[1724161776878,3.771,60842.0,60841.0,0.065723]
[1724161777169,0.11496602,60847.0,60841.0,0.3608]
[1724161777170,0.00024637,60847.0,60841.0,0.3608]
[1724161777366,0.00024637,60847.0,60846.0,0.426517]
[1724161777966,0.00024637,60847.0,60846.0,0.985274]
[1724161778163,0.3608,60861.0,60846.0,0.985274]
[1724161778164,0.04900265,60863.0,60847.0,0.065716]
[1724161778366,0.11469965,60865.0,60859.0,0.3608]
[1724161778581,3.835698,60864.0,60860.0,0.065702]
[1724161780277,3.839698,60864.0,60860.0,0.065702]
[1724161780577,3.839698,60864.0,60861.0,0.065701]
[1724161780972,0.0657,60862.0,60856.0,0.00024637]
[1724161781879,0.11470265,60862.0,60856.0,0.00024637]
[1724161782074,0.11470265,60862.0,60861.0,0.3608]
[1724161782267,0.0657,60862.0,60859.0,0.065703]
[1724161782669,0.11470265,60862.0,60859.0,0.065703]
[1724161782871,0.0657,60862.0,60859.0,0.065703]
[1724161783070,0.0657,60862.0,60860.0,0.065702]
[1724161783669,0.11470265,60862.0,60860.0,0.065702]
[1724161783881,0.11770265,60862.0,60860.0,0.065702]
[1724161784081,0.065701,60861.0,60860.0,0.065702]
[1724161784572,0.11470365,60861.0,60860.0,0.065702]
[1724161785179,0.065701,60861.0,60860.0,0.065702]
[1724161785677,0.065705,60858.0,60856.0,0.06595237]
[1724161785873,0.1147,60858.0,60856.0,0.06595237]
[1724161786083,0.1147,60858.0,60857.0,0.065705]
[1724161786285,0.3105,60859.0,60857.0,0.065705]
[1724161786579,0.3105,60859.0,60856.0,0.00024637]
[1724161786772,0.06941965,60861.0,60856.0,0.00024637]
[1724161786773,0.069701,60861.0,60858.0,0.065704]
[1724161787182,0.065701,60861.0,60858.0,0.065704]
[1724161787368,4.1308,60864.0,60858.0,0.065704]
[1724161787573,0.06541965,60863.0,60858.0,0.065704]
[1724161787776,4.19621965,60864.0,60858.0,0.065704]
[1724161788081,0.065702,60861.0,60860.0,0.065702]
[1724161788277,0.06541965,60863.0,60862.0,0.1314]
[1724161788470,0.00113092,60863.0,60862.0,0.1971]
[1724161788675,0.00113092,60863.0,60862.0,1.09002]
[1724161788880,0.00113092,60863.0,60862.0,1.02432]
[1724161789771,0.08190067,60868.0,60867.0,0.065695]
[1724161789977,0.08190067,60868.0,60867.0,0.426495]
[1724161790479,0.00024637,60868.0,60867.0,0.426495]
[1724161790984,0.01224637,60868.0,60867.0,0.001]
[1724161791371,0.07794037,60868.0,60867.0,0.001]
[1724161792077,0.065695,60867.0,60857.0,0.065705]
[1724161792279,0.065703,60860.0,60856.0,0.00024637]
[1724161792579,3.77,60858.0,60856.0,0.06595337]
[1724161793283,3.77,60858.0,60856.0,0.00024637]
[1724161793670,0.065705,60857.0,60856.0,0.00124637]
[1724161794069,3.77,60858.0,60856.0,0.06695237]
[1724161795081,0.065705,60857.0,60856.0,0.00124637]
[1724161796185,3.85387975,60858.0,60857.0,0.065705]
[1724161797783,3.85487975,60858.0,60857.0,0.065705]
[1724161797972,3.85287975,60858.0,60857.0,0.065705]
[1724161798684,0.065705,60857.0,60856.0,0.00024637]
[1724161799376,0.065716,60848.0,60844.0,0.065719]
[1724161799583,0.065716,60847.0,60845.0,0.065718]
[1724161799784,0.065716,60847.0,60846.0,0.065717]
[1724161799984,0.426513,60851.0,60843.0,0.06172334]
[1724161800185,0.426513,60851.0,60850.0,0.065713]
[1724161800373,0.0818903,60851.0,60850.0,0.065713]
[1724161801383,0.0828903,60851.0,60850.0,0.065713]
[1724161801893,0.0828903,60851.0,60850.0,0.068713]
[1724161802689,0.0828903,60851.0,60850.0,0.429513]
[1724161802889,0.0818903,60851.0,60850.0,1.388226]
[1724161803191,0.001,60851.0,60850.0,1.46218747]
[1724161804085,0.001,60851.0,60850.0,1.45918747]
[1724161804294,0.001,60851.0,60850.0,1.47446775]
[1724161804791,0.001,60851.0,60850.0,0.94304175]
[1724161805090,0.001,60851.0,60850.0,1.33279328]
[1724161805290,0.001,60851.0,60850.0,1.40150628]
[1724161805487,0.001,60851.0,60850.0,1.62492759]
[1724161805681,0.001,60851.0,60850.0,1.55992197]
[1724161805881,0.00024637,60857.0,60850.0,1.55992197]
[1724161805882,0.00024637,60857.0,60856.0,0.065707]
[1724161806082,0.00024637,60857.0,60856.0,1.517574]
[1724161806282,0.00024637,60857.0,60856.0,1.917574]
[1724161806588,0.00024637,60857.0,60856.0,1.9825309]
[1724161807181,3.77,60874.0,60873.0,0.065688]
[1724161807408,3.77,60874.0,60873.0,0.426488]
[1724161807581,0.0476,60880.0,60873.0,0.3608]
[1724161807781,0.0476,60880.0,60878.0,0.3608]
[1724161808291,3.77,60879.0,60878.0,0.426483]
[1724161808492,3.77,60879.0,60878.0,0.065683]
[1724161809696,3.778,60879.0,60878.0,0.066683]
[1724161809986,3.783,60879.0,60878.0,0.066683]
[1724161810189,3.783,60879.0,60878.0,0.001]
[1724161810378,3.848682,60879.0,60878.0,0.001]
[1724161810586,0.065687,60874.0,60873.0,0.00024637]
[1724161810793,0.065688,60873.0,60853.0,0.04870725]
[1724161810978,0.3608,60856.0,60850.0,0.01293841]
[1724161811293,0.3608,60856.0,60848.0,0.065714]
[1724161811294,0.3608,60851.0,60848.0,0.065714]
[1724161811480,0.3608,60851.0,60843.0,0.06572]
[1724161811793,0.3608,60846.0,60843.0,0.06572]
[1724161811986,0.3608,60846.0,60841.0,0.00024637]
[1724161812688,0.0468,60845.0,60841.0,0.00024637]
[1724161813189,0.0468,60845.0,60843.0,0.013]
[1724161814296,0.0478,60845.0,60843.0,0.013]
[1724161815010,0.0488,60845.0,60841.0,0.01424637]
[1724161815789,0.0488,60845.0,60841.0,0.01024637]
[1724161815790,0.0478,60845.0,60841.0,0.01024637]
[1724161815993,0.114518,60845.0,60843.0,0.005]
[1724161816196,0.5324,60844.0,60828.0,0.065736]
[1724161816387,0.3608,60833.0,60828.0,0.065736]
[1724161816590,0.3608,60833.0,60827.0,0.01280947]
[1724161816892,3.77,60832.0,60821.0,0.3608]
[1724161817091,4.1308,60832.0,60828.0,0.065736]
[1724161817403,4.1308,60832.0,60829.0,0.065735]
[1724161819197,4.1308,60832.0,60827.0,0.01674309]
[1724161819396,4.1308,60832.0,60827.0,0.004]
[1724161819598,0.065737,60828.0,60827.0,0.004]
[1724161819800,0.06574,60825.0,60824.0,0.00024658]
[1724161819996,0.42654,60825.0,60824.0,0.00024658]
[1724161820603,0.065746,60819.0,60818.0,0.00012413]
[1724161820795,0.426546,60819.0,60818.0,0.00012413]
[1724161821097,0.3608,60819.0,60803.0,0.426564]
[1724161821300,0.3608,60809.0,60795.0,0.3261]
[1724161821500,0.3608,60809.0,60800.0,0.065766]
[1724161821701,0.06576,60806.0,60795.0,0.3261]
[1724161821897,0.00011846,60805.0,60798.0,0.065769]
[1724161822090,0.00011846,60805.0,60799.0,0.065767]
[1724161822998,0.06588046,60805.0,60800.0,0.002]
[1724161823227,0.3608,60802.0,60800.0,0.002]
[1724161824607,0.3608,60802.0,60796.0,0.00024658]
[1724161824796,0.3608,60797.0,60796.0,0.00024658]
[1724161825198,0.42657,60797.0,60796.0,0.00024658]
[1724161825511,4.19657,60797.0,60796.0,0.00024658]
[1724161825699,0.065772,60796.0,60789.0,0.01305191]
[1724161825891,0.3608,60792.0,60787.0,0.06578]
[1724161826507,0.3608,60792.0,60787.0,0.07912369]
[1724161827100,0.3608,60792.0,60787.0,0.06578]
[1724161827299,0.426576,60792.0,60785.0,0.065783]
[1724161827499,0.426576,60792.0,60783.0,0.01322556]
[1724161827500,0.3608,60787.0,60783.0,0.01322556]
[1724161827697,0.3608,60787.0,60783.0,0.00016454]
[1724161827698,0.00013857,60786.0,60783.0,0.00016454]
[1724161829213,0.00013857,60786.0,60785.0,0.065783]
[1724161830099,0.00024658,60796.0,60785.0,0.065783]
[1724161830100,0.00024658,60796.0,60786.0,0.065782]
[1724161830407,0.3608,60803.0,60801.0,0.065766]
[1724161830628,0.3608,60812.0,60792.0,0.3608]
[1724161830629,0.065756,60810.0,60802.0,0.065764]
[1724161830800,0.065756,60810.0,60793.0,0.0496]
[1724161830801,0.3608,60805.0,60795.0,0.3608]
[1724161831001,0.3608,60805.0,60800.0,0.065767]
[1724161831202,0.065762,60804.0,60796.0,0.00024658]
[1724161831411,0.3608,60805.0,60796.0,0.00024658]
[1724161831610,0.426562,60805.0,60798.0,0.065769]
[1724161831909,0.3608,60799.0,60796.0,0.00024658]
[1724161833205,0.3618,60799.0,60798.0,0.065769]
[1724161833603,0.3618,60799.0,60796.0,0.00224658]
[1724161833800,0.3618,60799.0,60796.0,0.00324658]
[1724161834000,0.3618,60799.0,60796.0,0.00524658]
[1724161834413,0.3618,60799.0,60798.0,0.003]
[1724161834916,0.3628,60799.0,60798.0,0.003]
[1724161835304,0.06577,60797.0,60796.0,0.00224658]
[1724161835614,0.8932,60797.0,60788.0,0.065779]
[1724161835815,0.3608,60789.0,60788.0,0.065779]
[1724161836810,4.1308,60789.0,60788.0,0.002]
[1724161837410,4.1318,60789.0,60788.0,0.06778]
[1724161837709,4.1328,60789.0,60788.0,0.06778]
[1724161838108,0.3628,60789.0,60788.0,0.06778]
[1724161838406,0.00024658,60795.0,60794.0,0.065773]
[1724161840016,0.00024658,60795.0,60789.0,0.0467]
[1724161840017,0.00124658,60795.0,60789.0,0.0467]
[1724161840206,0.3608,60792.0,60791.0,0.065776]
[1724161841320,0.3618,60792.0,60791.0,0.065776]
[1724161842113,0.3618,60792.0,60791.0,0.559256]
[1724161842920,0.3628,60792.0,60791.0,0.560256]
[1724161843321,0.002,60792.0,60791.0,0.560256]
[1724161844109,0.002,60792.0,60791.0,0.066776]
[1724161844314,0.3628,60792.0,60791.0,0.001]
[1724161844509,0.3628,60792.0,60782.0,0.00016454]
[1724161844715,0.3608,60784.0,60783.0,0.065785]
[1724161845915,0.3608,60784.0,60783.0,0.559345]
[1724161846421,0.3618,60784.0,60783.0,0.559345]
[1724161846719,0.001,60784.0,60783.0,0.065785]
[1724161846920,0.001,60784.0,60783.0,1.17513]
[1724161847119,0.001,60792.0,60791.0,0.065776]
[1724161847725,3.77,60794.0,60793.0,0.065774]
[1724161849228,3.77,60794.0,60793.0,0.07854511]
[1724161849622,3.771,60794.0,60793.0,0.07854511]
[1724161849921,3.83648074,60794.0,60793.0,0.07854511]
[1724161850127,3.771,60794.0,60793.0,0.07854511]
[1724161850426,3.771,60794.0,60793.0,0.01277111]
[1724161850653,3.771,60794.0,60786.0,0.065781]
[1724161850924,0.06561555,60791.0,60786.0,0.065781]
[1724161851122,0.13139155,60791.0,60786.0,0.065781]
[1724161851527,0.06561555,60790.0,60786.0,0.065781]
[1724161851920,0.06561555,60790.0,60787.0,0.06578]
[1724161852122,0.13139155,60791.0,60788.0,0.065779]
[1724161852325,0.13239155,60791.0,60788.0,0.065779]
[1724161852825,0.001,60790.0,60788.0,0.065779]
[1724161853221,0.06661555,60790.0,60788.0,0.065779]
[1724161853421,0.06561555,60789.0,60785.0,0.37353661]
[1724161853616,0.08091976,60789.0,60785.0,0.01273661]
[1724161853820,0.065778,60790.0,60782.0,0.00016454]
[1724161853821,0.06566292,60786.0,60782.0,0.00016454]
[1724161854427,0.065785,60783.0,60782.0,0.00016454]
[1724161854921,0.1383388,60783.0,60782.0,0.00016454]
[1724161855923,0.1393388,60783.0,60782.0,0.00016454]
[1724161856331,0.112685,60783.0,60782.0,0.00016454]
[1724161856532,0.1947336,60783.0,60782.0,0.00016454]
[1724161856831,0.5555336,60783.0,60782.0,0.00016454]
[1724161857130,0.5565336,60783.0,60782.0,0.00016454]
[1724161857530,0.474485,60783.0,60782.0,0.00016454]
[1724161857730,0.5565336,60783.0,60782.0,0.00016454]
[1724161857917,0.474485,60783.0,60782.0,0.00016454]
[1724161858122,4.3265336,60783.0,60782.0,0.00016454]
[1724161858926,4.244485,60783.0,60782.0,0.00016454]
[1724161859527,3.883685,60783.0,60782.0,0.00016454]
[1724161860130,3.8179,60783.0,60782.0,0.00016454]
[1724161860319,3.772,60783.0,60782.0,0.00016454]
[1724161860520,3.772,60783.0,60782.0,0.92031054]
[1724161860726,0.002,60783.0,60782.0,0.93291585]
[1724161861127,3.772,60783.0,60782.0,0.93291585]
[1724161861632,0.002,60783.0,60782.0,0.93291585]
[1724161862135,3.772,60783.0,60782.0,0.93291585]
[1724161862525,3.772,60783.0,60782.0,0.43935585]
[1724161862731,3.772,60783.0,60782.0,0.93291585]
[1724161863642,3.772,60783.0,60782.0,0.43935585]
[1724161864233,3.772,60783.0,60782.0,0.4880631]
[1724161864936,3.772,60783.0,60782.0,0.48823809]
[1724161865129,3.772,60783.0,60782.0,0.43935585]
[1724161865639,3.837785,60783.0,60782.0,0.37356985]
[1724161867038,3.772,60783.0,60782.0,0.43935585]
[1724161867434,3.772,60783.0,60782.0,0.45667445]
[1724161867635,3.772,60783.0,60782.0,0.43935585]
[1724161869139,3.772,60783.0,60782.0,0.50556596]
[1724161869436,3.772,60783.0,60782.0,0.50556129]
[1724161870744,0.06063343,60789.0,60783.0,0.2727]
[1724161870936,0.06562611,60800.0,60789.0,0.699]
[1724161871133,0.06562611,60802.0,60799.0,0.3608]
[1724161871342,3.83562611,60804.0,60803.0,0.065763]
[1724161871530,3.77,60804.0,60797.0,0.04883048]
[1724161871734,0.06562611,60800.0,60795.0,0.426572]
[1724161871941,0.06562611,60800.0,60796.0,0.065771]
[1724161872239,0.06662611,60800.0,60799.0,0.065768]
[1724161872444,0.001,60800.0,60799.0,0.065768]
[1724161872642,0.001,60800.0,60795.0,0.37335137]
[1724161872946,0.06562611,60798.0,60795.0,0.37335137]
[1724161873144,0.15982611,60797.0,60795.0,0.37335137]
[1724161874334,0.15982611,60797.0,60795.0,0.01255137]
[1724161874539,0.06562611,60796.0,60793.0,0.3608]
[1724161875049,0.3608,60794.0,60782.0,0.065785]
[1724161875251,0.06559779,60789.0,60780.0,0.3608]
[1724161875545,0.06559779,60786.0,60780.0,0.37321406]
[1724161875848,0.06559779,60785.0,60780.0,0.37321406]
[1724161876251,0.06559779,60785.0,60782.0,0.001]
[1724161876746,3.77,60784.0,60782.0,0.001]
[1724161876937,3.77,60784.0,60780.0,0.37421406]
[1724161877141,3.77,60784.0,60782.0,0.001]
[1724161877440,3.77,60784.0,60783.0,0.065785]
[1724161878144,3.771,60784.0,60783.0,0.065785]
[1724161878741,3.77,60784.0,60783.0,0.065785]
[1724161878944,3.771,60784.0,60783.0,0.493085]
[1724161879854,0.001,60784.0,60783.0,0.493085]
[1724161880238,0.001,60784.0,60783.0,0.51039131]
[1724161880445,0.001,60784.0,60783.0,0.51139131]
[1724161880446,0.002,60784.0,60783.0,0.51139131]
[1724161880953,0.002,60784.0,60783.0,0.494085]
[1724161881150,0.002,60784.0,60783.0,0.51139136]
[1724161881357,0.002,60784.0,60783.0,0.494085]
[1724161883352,0.00024658,60789.0,60788.0,0.065779]
[1724161883549,3.77024658,60789.0,60788.0,0.065779]
[1724161883944,0.06559779,60793.0,60788.0,0.492079]
[1724161884254,0.06559779,60798.0,60792.0,0.3608]
[1724161884458,0.065764,60803.0,60798.0,0.065769]
[1724161884459,0.06559779,60799.0,60798.0,0.065769]
[1724161886147,0.06559779,60801.0,60800.0,0.065767]
[1724161886349,0.3608,60812.0,60804.0,0.065762]
[1724161886350,0.05411928,60812.0,60804.0,0.065762]
[1724161886546,0.12954177,60820.0,60817.0,0.065748]
[1724161886750,0.0475,60820.0,60818.0,0.065747]
[1724161887152,0.0475,60820.0,60815.0,0.4263]
[1724161887858,0.0475,60820.0,60815.0,0.43886592]
[1724161888253,0.3608,60816.0,60811.0,0.36104658]
[1724161888457,0.4103,60815.0,60811.0,0.00024658]
[1724161888656,0.065752,60813.0,60811.0,0.01301594]
[1724161888972,0.0495,60815.0,60811.0,0.00024658]
[1724161889155,0.0495,60815.0,60812.0,0.3608]
[1724161889755,0.0495,60815.0,60813.0,0.065752]
[1724161890651,0.0545,60815.0,60813.0,0.065752]
[1724161891254,0.0495,60815.0,60813.0,0.065752]
[1724161891454,0.0555,60815.0,60813.0,0.065752]
[1724161891663,0.0625,60815.0,60813.0,0.065752]
[1724161892156,0.0625,60815.0,60814.0,0.065751]
[1724161892862,0.0635,60815.0,60814.0,0.065751]
[1724161893263,0.014,60815.0,60814.0,0.065751]
[1724161893761,0.008,60815.0,60814.0,0.065751]
[1724161893950,0.015,60815.0,60814.0,0.065751]
[1724161895256,0.007,60815.0,60814.0,0.065751]
[1724161895451,0.016,60815.0,60814.0,0.065751]
[1724161895653,0.065752,60814.0,60811.0,0.01276673]
[1724161895859,0.0932,60814.0,60811.0,0.01276673]
[1724161896161,0.065754,60812.0,60811.0,0.00024658]
[1724161896361,4.1308,60812.0,60801.0,0.0024]
[1724161896565,0.065755,60811.0,60804.0,0.065762]
[1724161896857,3.77,60812.0,60798.0,0.3608]
[1724161897064,3.77,60812.0,60803.0,0.065762]
[1724161897065,3.835754,60812.0,60803.0,0.065762]
[1724161897263,0.065755,60811.0,60804.0,0.065762]
[1724161897465,0.065755,60811.0,60805.0,0.06576]
[1724161897854,0.065755,60811.0,60807.0,0.065759]
[1724161898370,3.771,60812.0,60804.0,0.3608]
[1724161898568,3.771,60812.0,60811.0,0.065755]
[1724161900663,3.77,60812.0,60811.0,0.065755]
[1724161901364,3.774,60812.0,60811.0,0.065755]
[1724161901757,3.78,60812.0,60811.0,0.065755]
[1724161902569,3.78,60812.0,60811.0,0.492055]
[1724161903567,0.01,60812.0,60811.0,0.492055]
[1724161904265,0.01,60812.0,60811.0,0.50478814]
[1724161905368,0.01,60812.0,60811.0,0.07848814]
[1724161906159,3.78,60812.0,60811.0,0.07848814]
[1724161906767,3.78,60812.0,60811.0,0.50478814]
[1724161907766,3.78,60812.0,60811.0,0.01273314]
[1724161907966,0.065755,60811.0,60809.0,0.3608]
[1724161908269,0.065756,60810.0,60806.0,0.06576]
[1724161908567,0.0472,60809.0,60808.0,0.065758]
[1724161908793,0.09627906,60809.0,60805.0,0.3608]
[1724161909075,0.04907906,60808.0,60805.0,0.3608]
[1724161909267,0.04907906,60807.0,60806.0,0.06576]
[1724161909668,0.0472,60809.0,60808.0,0.065758]
[1724161910869,0.04907906,60810.0,60809.0,0.065757]
[1724161911071,0.001,60811.0,60810.0,0.065756]
[1724161911376,0.001,60811.0,60810.0,0.426556]
[1724161911575,3.77,60812.0,60811.0,0.065755]
[1724161912267,3.81907906,60812.0,60811.0,0.065755]
[1724161912468,3.81907906,60812.0,60811.0,0.07830969]
[1724161912669,3.82507906,60812.0,60811.0,0.07830969]
[1724161912876,3.841754,60812.0,60811.0,0.01255469]
[1724161913071,3.841754,60812.0,60808.0,0.065758]
[1724161913572,0.065755,60811.0,60808.0,0.065758]
[1724161913778,0.14779677,60811.0,60808.0,0.065758]
[1724161914264,0.08204177,60810.0,60808.0,0.065758]
[1724161914966,0.08204177,60810.0,60797.0,0.40953168]
[1724161914967,0.06577,60798.0,60792.0,0.3608]
[1724161915170,0.065763,60804.0,60792.0,0.3608]
[1724161915171,0.1442,60797.0,60796.0,0.065771]
[1724161915471,3.8654,60797.0,60796.0,0.065771]
[1724161916271,4.35884,60797.0,60792.0,0.3608]
[1724161916571,0.44282096,60796.0,60790.0,0.00016454]
[1724161916878,0.08202096,60795.0,60790.0,0.00016454]
[1724161917070,0.44282096,60796.0,60790.0,0.00016454]
[1724161917267,0.065775,60792.0,60790.0,0.00016454]
[1724161918979,0.065775,60792.0,60790.0,0.00216454]
[1724161918980,0.066775,60792.0,60790.0,0.00216454]
[1724161919272,0.0491368,60791.0,60790.0,0.00216454]
[1724161919479,0.0491368,60791.0,60790.0,0.00316454]
[1724161920385,0.0501368,60791.0,60790.0,0.00316454]
[1724161920673,0.001,60791.0,60790.0,0.00316454]
[1724161920880,0.001,60791.0,60790.0,0.92322154]
[1724161921068,0.04912736,60797.0,60796.0,0.065771]
[1724161921374,0.00024658,60803.0,60801.0,0.065765]
[1724161921375,0.04912736,60802.0,60801.0,0.065765]
[1724161921972,0.00024658,60803.0,60802.0,0.065764]
[1724161922275,0.00024658,60803.0,60802.0,0.492064]
[1724161922480,0.00024658,60803.0,60802.0,0.065764]
[1724161923174,0.00524658,60803.0,60802.0,0.065764]
[1724161923771,0.04912736,60811.0,60810.0,0.065756]
[1724161924070,0.04912736,60813.0,60810.0,0.3608]
[1724161924278,0.04912736,60815.0,60814.0,0.065751]
[1724161924478,3.77,60820.0,60810.0,0.3608]
[1724161924777,3.77,60820.0,60816.0,0.065749]
[1724161924778,0.04911406,60817.0,60816.0,0.065749]
[1724161925880,0.04911406,60818.0,60816.0,0.065749]
[1724161926081,0.02,60817.0,60816.0,0.066749]
[1724161926583,0.085748,60817.0,60816.0,0.001]
[1724161926972,0.02,60817.0,60816.0,0.001]
[1724161927284,3.779,60817.0,60816.0,0.001]
[1724161927480,3.77,60817.0,60816.0,0.001]
[1724161927881,0.04911264,60817.0,60816.0,0.599449]
[1724161928081,0.011,60818.0,60817.0,0.065748]
[1724161928383,0.011,60818.0,60817.0,0.559028]
[1724161928585,0.011,60818.0,60817.0,1.024776]
[1724161928880,0.00024658,60821.0,60820.0,0.065745]
[1724161929085,0.00024658,60821.0,60820.0,0.426545]
[1724161929288,0.00024658,60821.0,60820.0,0.919785]
[1724161930182,0.09421264,60837.0,60824.0,0.065741]
[1724161930382,0.0451,60837.0,60836.0,0.065728]
[1724161930683,3.8151,60837.0,60836.0,0.065728]
[1724161931593,3.779,60837.0,60836.0,0.065728]
[1724161932189,3.778,60837.0,60836.0,0.065728]
[1724161932386,3.778,60837.0,60836.0,0.07818996]
[1724161932781,3.789,60837.0,60836.0,0.07918996]
[1724161933185,0.019,60837.0,60836.0,0.001]
[1724161933401,0.008,60837.0,60833.0,0.3608]
[1724161933694,0.018,60837.0,60836.0,0.001]
[1724161934793,3.788,60837.0,60836.0,0.001]
[1724161935584,3.778,60837.0,60834.0,0.065731]
[1724161935785,3.785,60837.0,60834.0,0.065731]
[1724161936482,3.785,60837.0,60833.0,0.37439865]
[1724161936483,3.788,60837.0,60836.0,0.001]
[1724161937282,3.778,60837.0,60835.0,0.06573]
[1724161937494,3.786,60837.0,60835.0,0.06573]
[1724161937692,3.786,60837.0,60836.0,0.065729]
[1724161937888,3.778,60837.0,60836.0,0.065729]
[1724161938087,0.014,60837.0,60836.0,0.131458]